Cogmind - Beta 16 @@@ ROGUE MODE // 2026.01.02 @ 15:17:00 Player: winnking222 Result: Smashed by cave-in Performance ------------- Evolutions (0) 0 Regions Visited (2) 400 Robots Destroyed (22) 110 Value Destroyed (676) 676 Prototype IDs (12) 240 Alien Tech Used (0) 0 Bonus (0) 0 TOTAL SCORE: 1426 Bonus ------- None Cogmind --------- Core Integrity 0/250 Matter 300/300 Energy 166/170 System Corruption 1% Temperature Cool (2) Movement Treading (240) Ox1 Location -10/Subcaves Parts ------- > --- POWER (1) -------- Makeshift Power Source > --- PROPULSION (2) --- Improved Treads > --- UTILITY (2) ------ Large Storage Unit Seismic Detector > --- WEAPON (2) ------- Subdweller Beam Cannon Improved Light Cannon > --- INVENTORY (15) --- Improved Treads Improved Treads Subdweller Monowheel Subdweller Monowheel Flight Unit Flight Unit Subdweller Optics Scrap Shield Tower Shield Subdweller Beam Cannon Subdweller Machine Gun Subdweller Machine Gun Subdweller Shrapnel Launcher Peak State ------------ > --- POWER ------------ Makeshift Power Source > --- PROPULSION ------- Light Treads Improved Treads > --- UTILITY ---------- Large Storage Unit Seismic Detector > --- WEAPON ----------- Subdweller Beam Cannon Improved Light Cannon > --- INVENTORY -------- Improved Treads Improved Treads Subdweller Monowheel Subdweller Monowheel Flight Unit Flight Unit Subdweller Optics Scrap Shield Tower Shield Subdweller Beam Cannon Subdweller Machine Gun Subdweller Machine Gun Subdweller Shrapnel Launcher [Rating: 17] Favorites ----------- Power Light Ion Engine Engine Light Ion Engine Propulsion Light Treads Treads Light Treads Utility Seismic Detector Device Seismic Detector Storage Large Storage Unit Protection Light Armor Plating Weapon Improved Light Cannon Energy Gun Small Laser Energy Cannon Subdweller Beam Cannon Ballistic Gun Assault Rifle Ballistic Cannon Improved Light Cannon Build | -11 -10 -10 ------- Run | Yrd Mat Sub Slots Evolved . | . . . Power . | . . . Propulsion . | . . . Utility . | . . . Weapon . | . . . Parts Attached 25 | 7 3 15 Power 5 | 1 . 4 Engine 5 | 1 . 4 Core . | . . . Reactor . | . . . Propulsion 6 | 2 . 4 Treads 6 | 2 . 4 Leg . | . . . Wheel . | . . . Hover . | . . . Flight . | . . . Utility 5 | 2 1 2 Device 2 | 1 . 1 Storage 2 | 1 1 . Processor . | . . . Hackware . | . . . Protection 1 | . . 1 Artifact . | . . . Weapon 9 | 2 2 5 Energy Gun 1 | 1 . . Energy Cannon 1 | . . 1 Ballistic Gun 1 | 1 . . Ballistic Cannon 6 | . 2 4 Launcher . | . . . Special Weapon . | . . . Impact Weapon . | . . . Slashing Weapon . | . . . Piercing Weapon . | . . . Special Melee Weapon . | . . . Unidentified Prototypes . | . . . Parts Lost 4 | . . 4 Power 1 | . . 1 Propulsion 1 | . . 1 Utility 1 | . . 1 Weapon 1 | . . 1 Highest Loss Streak 1 | . . 1 To Critical Strikes 1 | . . 1 Average Backups 12 | 5 13 13 Power . | . 1 . Propulsion 6 | 3 7 6 Utility 2 | . 2 3 Weapon 3 | 1 2 3 Tool/Special . | . . . Unused Backups 22 | . 5 17 Power . | . . . Propulsion 10 | . 3 7 Utility 5 | . 1 4 Weapon 7 | . 1 6 Tool/Special . | . . . Average Slot Usage (%) 99 | . 100 99 Engine 13 | . 14 13 Treads 28 | . 28 28 Device 13 | . 14 13 Storage 14 | . 14 14 Energy Gun 1 | . 8 . Energy Cannon 3 | . . 3 Ballistic Gun 1 | . 9 . Ballistic Cannon 22 | . 10 24 Peak Build Rating 17 | 7 11 17 Average Rating 13 | 5 9 14 On Entrance 6 | . 7 11 Avg Prop Armor Cover (%) . | . . . Naked Turns . | . . . Heaviest Build 38 | 12 32 38 Greatest Support 43 | 40 40 43 Greatest Overweight (x) 3 | 3 . . Average Overweight (x) . | . . . Largest Inventory Capacity 15 | 8 15 15 Average Capacity 14 | 7 14 15 Most Carried 15 | 8 15 15 Average Carried 14 | 6 13 14 Final Capacity 15 | 8 15 15 Final Carried 15 | 7 15 15 Class Distribution -------------------- 100% | Mutant Dominant Class ---------------- Mutant | -10/Materials Mutant | -10/Subcaves Resources | -11 -10 -10 ----------- Run | Yrd Mat Sub Matter Collected 976 | 291 56 629 Remotely . | . . . Salvage Created 601 | 153 66 382 Parts 34 | 6 7 21 Haulers Intercepted . | . . . Recyclers Shooed . | . . . Parts Field Recycled . | . . . Retrieved Matter . | . . . Parts Self-Destructed 8 | . . 8 Prevented . | . . . Parts Restored . | . . . Kills | -11 -10 -10 ------- Run | Yrd Mat Sub Combat Hostiles Destroyed 18 | . 3 15 Guns 3 | . 3 . Cannons 14 | . . 14 Classes Destroyed 6 | 2 2 2 Tunneler 2 | 2 . . Recycler 1 | 1 . . Watcher 1 | . 1 . Swarmer 3 | . 3 . Sentry 2 | . . 2 Subdweller 13 | . . 13 Best Kill Streak 3 | 3 3 3 Combat Bots Only 3 | . 3 3 Max Kills in Single Turn 1 | 1 1 1 Gunslinging . | . . . Exploded . | . . . Melee . | . . . Uniques/NPCs Destroyed . | . . . Combat | -11 -10 -10 -------- Run | Yrd Mat Sub Hostile Shots Fired 90 | . 26 64 Missed 20 | . 1 19 Hits 70 | . 25 45 Projectile 70 | . 25 45 Critical Strikes 2 | . . 2 Damage Taken 1512 | . 204 1308 Core 302 | . 38 264 Absorbed by Shields . | . . . Core Remaining (%) 100 | 100 . . Volleys Fired 87 | 7 18 62 Largest 2 | 2 2 2 Hottest 113 | 60 66 113 Shots Fired 166 | 14 36 116 Gun 46 | 14 32 . Cannon 120 | . 4 116 Launcher . | . . . Special . | . . . Kinetic 133 | 7 20 106 Thermal 33 | 7 16 10 Explosive . | . . . Electromagnetic . | . . . Robot Hit Streak 20 | 6 3 20 Robot Miss Streak 3 | 1 3 1 Penetration Max . | . . . Secondary Targets . | . . . Shots Hit Robots 92 | 10 15 67 Core Hits 32 | 4 5 23 Critical Kills 1 | . . 1 Critical Parts Destroyed . | . . . Critical Strikes 5 | . . 5 Meltdown 1 | . . 1 Blast 4 | . . 4 Melee Attacks . | . . . Impact . | . . . Slashing . | . . . Piercing . | . . . Sneak Attacks . | . . . Combat Hostiles . | . . . Follow-up Attacks . | . . . Damage Inflicted 1743 | 135 194 1414 Guns 289 | 135 154 . Cannons 1454 | . 40 1414 Explosions . | . . . Melee . | . . . Ramming . | . . . Kinetic 1501 | 78 94 1329 Thermal 242 | 57 100 85 Explosive . | . . . Electromagnetic . | . . . Impact . | . . . Slashing . | . . . Piercing . | . . . Highest Corruption . | . . . Average Corruption . | . . . Corruption Purged . | . . . Corruption Blocked . | . . . Overload Shots . | . . . Overflow Damage . | . . . Projectiles . | . . . Explosions . | . . . Melee . | . . . Knockbacks 10 | . 1 9 Impact . | . . . Kinetic 10 | . 1 9 Secondary . | . . . Self-Inflicted Damage . | . . . Shots . | . . . Rammed . | . . . Targets Rammed . | . . . Kicked . | . . . Crushed . | . . . Highest Temperature 72 | . 12 72 Average Temperature 31 | . 7 39 Received Heat Transfer 150 | . . 150 Siege Activations . | . . . Martial Activations . | . . . Shielding Activations . | . . . Robots Disrupted . | . . . Combat Hostiles . | . . . Robots Corrupted . | . . . Combat Hostiles . | . . . Parts Fried . | . . . Impact Corruptions . | . . . Robots Melted 1 | . . 1 Combat Hostiles 1 | . . 1 Parts Melted 1 | . . 1 Heat Transferred 461 | 125 225 111 Parts Sabotaged . | . . . Parts Stolen . | . . . Parts Stripped . | . . . Power Chain Reactions . | . . . Alert | -11 -10 -10 ------- Run | Yrd Mat Sub Maximum Alert Level . | . . . Low Security (%) 100 | 100 100 . Level 1 . | . . . Level 2 . | . . . Level 3 . | . . . Level 4 . | . . . Level 5 . | . . . High Security . | . . . Max Security . | . . . Peak Influence 71 | 10 71 . Initial . | . . . Average 9 | . 12 . Influence Increases 134 | 15 79 40 Destroy 0b10 Robot/C 100 | . 60 40 Destroy 0b10 Robot/NC 20 | 15 5 . Destroy Leader 12 | . 12 . Destroy Structure 2 | . 2 . Influence Decreases 134 | 15 79 40 Time Decay 134 | 15 79 40 Squads Dispatched 1 | . 1 . Investigation . | . . . Extermination . | . . . Reinforcement 1 | . 1 . Assault . | . . . Garrison . | . . . Intercept . | . . . Searches Triggered . | . . . Construction Impeded . | . . . Haulers Reinforced . | . . . Active Scanning Responses . | . . . Cargo Convoy Interrupts . | . . . Stealth | -11 -10 -10 --------- Run | Yrd Mat Sub Distress Signals . | . . . Communications Jammed . | . . . Distress Signals . | . . . Times Spotted 20 | . 6 14 Peak Tracking Total 4 | . 4 3 Tactical Retreats . | . . . Traps | -11 -10 -10 ------- Run | Yrd Mat Sub Traps Triggered 1 | . . 1 Indirectly . | . . . Trap Hack Attempts . | . . . Triggered . | . . . Disarmed . | . . . Reprogrammed . | . . . Reused . | . . . Traps Extracted . | . . . Installed . | . . . Triggered . | . . . Machines | -11 -10 -10 ---------- Run | Yrd Mat Sub Machines Disabled 1 | . . 1 Max in Single Turn 1 | . . 1 Machines Repaired . | . . . Machines Dismantled . | . . . Machines Sabotaged . | . . . Overloaded Fab Kills . | . . . Hacking | -11 -10 -10 --------- Run | Yrd Mat Sub Machines Accessed 1 | . . 1 Terminals . | . . . Fabricators . | . . . Repair Stations . | . . . Recycling Units . | . . . Scanalyzers . | . . . Garrison Access . | . . . Total Hacks 1 | . . 1 Successful 1 | . . 1 Failed . | . . . Catastrophic . | . . . Database Lockouts . | . . . Manual . | . . . Terminals . | . . . Fabricators . | . . . Repair Stations . | . . . Recycling Units . | . . . Scanalyzers . | . . . Garrison Access . | . . . Terminal Hacks 1 | . . 1 Proto ID Catalog 1 | . . 1 Fabricator Hacks . | . . . Repair Station Hacks . | . . . Recycling Unit Hacks . | . . . Scanalyzer . | . . . Garrison Access Hacks . | . . . Unauthorized Hacks . | . . . Terminals . | . . . Fabricators . | . . . Repair Stations . | . . . Recycling Units . | . . . Scanalyzers . | . . . Garrison Access . | . . . Data Cores Recovered . | . . . Used . | . . . Hacking Detections . | . . . Full Trace Events . | . . . Feedback Events . | . . . Feedback Blocked . | . . . Robot Schematics Acquired . | . . . Robots Built . | . . . Authchips . | . . . Time . | . . . Total Robot Build Rating . | . . . Part Schematics Acquired . | . . . Parts Built . | . . . Authchips . | . . . Time . | . . . Total Part Build Rating . | . . . Part Studies Acquired . | . . . Parts Repaired . | . . . Time . | . . . Parts Recycled . | . . . Recycled Matter . | . . . Retrieved Matter . | . . . Retrieved Components . | . . . Parts Scanalyzed . | . . . Part Schematics Acquired . | . . . Parts Damaged . | . . . Bothacking | -11 -10 -10 ------------ Run | Yrd Mat Sub Used RIF Installer . | . . . Robots Hacked . | . . . Non-combat . | . . . Combat . | . . . Robot Hacks Applied . | . . . Relay Couplers Released . | . . . Fabnet Peak Effective % . | . . . Robots Rewired . | . . . Allies Hacked . | . . . Hacks Repelled . | . . . Allies | -11 -10 -10 -------- Run | Yrd Mat Sub Total Allies . | . . . Largest Group . | . . . Highest-Rated Group . | . . . Highest-Rated Ally . | . . . Total Orders . | . . . Ally Attacks . | . . . Total Damage . | . . . Kills . | . . . Allies Corrupted . | . . . Allies Melted . | . . . Intel | -11 -10 -10 ------- Run | Yrd Mat Sub Active Infowar (turns) 3325 | 35 420 2870 Seismic 3325 | 35 420 2870 Robot Analysis Total . | . . . Derelict Logs Recovered 2 | . . 2 Drone Launches . | . . . Drone Recoveries . | . . . Exploration | -11 -10 -10 ------------- Run | Yrd Mat Sub Turns Passed 3467 | 146 420 2901 Spaces Moved 1938 | 72 199 1667 Core 21 | 21 . . Treads 1917 | 51 199 1667 Legs . | . . . Wheels . | . . . Hover . | . . . Flight . | . . . Fastest Speed 50 | 50 160 160 Average Speed 159 | 148 160 160 Slowest Speed 200 | 200 160 160 Overloaded Moves . | . . . Propulsion Burnouts . | . . . Robots Hopped . | . . . Potential Cave-ins 1 | . . 1 Cave-ins Triggered 1 | . . 1 Exploration Rate (%) 40 | 6 47 68 Regions Visited 2 Branch Regions 1 Pre-discovered Areas . | . . . Known Exits Taken . | . . . Unknown Exits Taken 2 | 1 1 . Scrap Searched 7 | . . 7 Spaces Dug 5 | . . 5 Terrain Destroyed 5 | . . 5 Melee . | . . . Projectile 5 | . . 5 AOE . | . . . Terrain Rammed . | . . . Walls Destroyed . | . . . Machines Disabled . | . . . Actions | -11 -10 -10 --------- Run | Yrd Mat Sub Total 2156 | 96 268 1792 Wait 38 | . 25 13 Move 1935 | 71 198 1666 Hop . | . . . Pick Up 41 | 11 16 14 Fast Attach 6 | 3 . 3 Attach 9 | 4 2 3 Detach . | . . . Swap 12 | . 1 11 Drop 28 | . 8 20 Fire 87 | 7 18 62 Melee . | . . . Ram . | . . . Kick . | . . . Crush . | . . . Escape Stasis . | . . . Rewire . | . . . Trap . | . . . Miscellaneous . | . . . Route ------- -11/Scrapyard -10/Materials (discovered 2 exits: [*Mat] / *Sub) -10/Subcaves (discovered 3 exits: [*Mat x2] / Rec) History --------- Turn | Location | Event 29 | -11/Scrapyard | Discovered new exit (range 15) 147 | -11/Scrapyard | Entered Materials 302 | -10/Materials | Build established: Mutant 429 | -10/Materials | Discovered new exit (range 16) 556 | -10/Materials | Discovered new exit (range 4) 567 | -10/Materials | Entered Subcaves 568 | -10/Subcaves | Approached by a straggling Scientist 756 | -10/Subcaves | A swath of the cavern ceiling suddenly collapsed 790 | -10/Subcaves | Core integrity fell below 50% 1017 | -10/Subcaves | Visited 4L-MR0's lab 1038 | -10/Subcaves | Found Tower Shield 1083 | -10/Subcaves | Shifting Twisted Machinery released Shrapnel Trap 1084 | -10/Subcaves | Shifting Twisted Machinery released Sub. Monowheel 1158 | -10/Subcaves | Shifting Twisted Machinery released Flamer 1340 | -10/Subcaves | A swath of the cavern ceiling suddenly collapsed 1569 | -10/Subcaves | Discovered new exit (range 5) 1999 | -10/Subcaves | Disturbed a concealed Subdweller 2061 | -10/Subcaves | A Subdweller sparked back to life 2071 | -10/Subcaves | Core integrity fell below 20% 2735 | -10/Subcaves | Disturbed a concealed Subdweller 2852 | -10/Subcaves | Learned Materials machine intel 2855 | -10/Subcaves | Identified exit to Recycling 3076 | -10/Subcaves | Discovered new exit (range 9) 3094 | -10/Subcaves | Shifting Twisted Machinery released Sub. Optics 3455 | -10/Subcaves | Ambushed by Subdweller buried in earth 3468 | -10/Subcaves | Crushed by falling debris 3468 | -10/Subcaves | Smashed by cave-in Last Messages --------------- 02751_ Acquired Mak. Power Source. 02753_ Acquired 1 matter. 02756_ Acquired 9 matter. 02852_ Acquired derelict log, extracted data. Data stored: Materials machine intel. 02855_ Acquired derelict log, extracted data. Loading 1 Subcaves exit... 03058_ Triggered Shrapnel Trap. 03058_ An expanding cloud of shrapnel blasts out in all directions. 03076_ EXIT=FOUND Sub. Optics falls loose from the Twisted Machinery. 03241_ Subatomizers dissect the Battle Cannon, destroying it. 03255_ Subatomizers dissect the Sub. Laser. 03456_ EL-YQ6(R): "ARGHSUB!" 03457_ EL-YQ6(R) destroyed. 03468_ Acquired 8 matter. 03468_ The unstable cave ceiling collapses. 03468_ Crushed by falling debris. 03468_ Lgt. Treads destroyed. 03468_ System corrupted by crushing effect (+1). Map ----- +----------------------------------------------------+ | ???????????????????##????# ##????##### | | ???????????????????#$ ???## #????#%" | | ????????????????????$ ????# ###### " ## | | ????????????????????? ??## ## # " #?# | | ?????????????????????? ??# ##??# | | ?????????????????????## ## # &"" #????# # | | ?????????????????????# #" # & ##??#### | | ?????????????????????# # ###### #??#%&& | | ?????????????????????# # ###### =% #??##" | | ?????????????????????# #"" # # # %&%###???### | | ???????????????????? ###" *###?????# | | ??????????????????# ???# #?###??### | | ??????????????????#" ????## # # ## ### #### " | | ??????????????????##??????# ######## | | ??????????????????????????# ######## | | ??????????????????????????# ## ## ## # | | ??????????????????????????#### ######### | | ???? ##????????????????????## #?????### | | ????? #???????????????????# ## ##?#### | | ????? ##?????????????????# #### ### | | ?????? ?????????????????# #??## # | | #?#??? ##????????##?????# ##??# # # ### | | # #?? #?????? """#???##& #??############?? | | ## #????? ????##&######???????????????? | | # ##### ?????##&##????????????????????? | | ??# # ???????#@##????????????????????## | | ??## ???????>#[##????????????????????## | | ??# ?????????#;#??????????????????????# | | ???# ###????????##???????????????????????# | | ???## ##????????????????????????????????# | | ????## """ !" #????????????????????????????????# | | ?????#"" ""##????????????????????????????????# | | ?????# ####?????????????????????????????????# | | ?????# < #????????????????????????????????????# | | ?????# ##???????????????????????????????????## | | ?????## #???????????????????????????????????## | | ??????## ##??????????????????????????????????# | | ???????## ##????????????????????????#######??## | | ????????## #??????????????????????### ##??# | | ?????????# #??????????????????????# #?## | | ?????????# ####???????????????????# #??# | | ?????????# ###?????????????????# #### | | #????????# #??###????????????### ## | | ########?# ### #?# #??????????????## | | #?## #? ## #???????????????# | | #??# ### #???????????????# | | ##?# #""" ^ #???????????????## ## | | ### ""% #????????????????## #? | | #??# #" #???????????????????# #? | | #??### " ^^#???????????????????# #? | +----------------------------------------------------+ Best States ------------- Heat Dissipation 25 Energy Generation 15 Energy Capacity 200 Matter Stores 300 Matter Capacity 300 Sight Range 16 Terrain Scan Density 10 Armor Coverage 150 Evasion (%) 50 Recoil Reduction 2 Item Schematics ----------------- None Robot Schematics ------------------ None Fabricated ------------ Nothing Repaired ---------- Nothing Studied --------- None Alien Tech Used ----------------- None Achievements -------------- None Challenges ------------ None Game ------ Seed IonicTacticalChargecaster Manual? 0 Play Time 00:13:16 Cumulative 219.1 hours Start 2026.01.02 @ 15:03:59 End 2026.01.02 @ 15:17:00 Sessions 1 Manual Loads 0 Difficulty Rogue Special Mode None Game No. 307 Rogue 307 Adventurer 0 Explorer 0 Win Type - Total 3 Types 2/0/0/1/0/0/0/0/0/0 Lore% 74 Gallery% 74 Achievement% 50 Wizard Run 0 Options --------- Layout 0 ASCII 0 Keyboard 0 Movement Mouse Keybinds 0 Fullscreen 1 Font 16/SmallcapsGlow Map View 75x55 Zoom Use 0% Tactical HUD 1 Map Filters NONE Filters NONE Steam 1 RUN: 3efb9c64-2cc3-4e06-b579-172e480ba587